bitfinex/quotes_BTCUSD_20250109
["timestamp","ask_amount","ask_price","bid_price","bid_amount"]
[1736392807084,0.05246708,94622.0,94621.0,5.018e-05]
[1736392807869,0.05146708,94622.0,94621.0,5.018e-05]
[1736392808072,0.05246708,94622.0,94621.0,5.018e-05]
[1736392808967,0.05146708,94622.0,94621.0,5.018e-05]
[1736392809166,0.15776684,94622.0,94621.0,5.018e-05]
[1736392809600,0.15676684,94622.0,94621.0,5.018e-05]
[1736392810191,0.17332192,94622.0,94621.0,5.018e-05]
[1736392810642,0.17232192,94622.0,94621.0,5.018e-05]
[1736392810989,0.24040571,94622.0,94621.0,5.018e-05]
[1736392811239,0.17232192,94622.0,94621.0,5.018e-05]
[1736392811719,0.17432192,94622.0,94621.0,5.018e-05]
[1736392811918,0.15676684,94622.0,94621.0,5.018e-05]
[1736392812123,0.15576684,94622.0,94621.0,5.018e-05]
[1736392812808,0.15876684,94622.0,94621.0,5.018e-05]
[1736392813670,0.48236684,94622.0,94621.0,5.018e-05]
[1736392814070,0.48136684,94622.0,94621.0,5.018e-05]
[1736392814515,0.47936684,94622.0,94621.0,5.018e-05]
[1736392814718,0.4927911,94622.0,94621.0,5.018e-05]
[1736392815083,0.4937911,94622.0,94621.0,5.018e-05]
[1736392815290,0.4917911,94622.0,94621.0,5.018e-05]
[1736392815491,0.4897911,94622.0,94621.0,5.018e-05]
[1736392815705,0.4927911,94622.0,94621.0,5.018e-05]
[1736392817943,0.4937911,94622.0,94621.0,5.018e-05]
[1736392822214,0.55295968,94622.0,94621.0,5.018e-05]
[1736392822495,0.55095968,94622.0,94621.0,5.018e-05]
[1736392822646,0.54895968,94622.0,94621.0,5.018e-05]
[1736392822973,0.54995968,94622.0,94621.0,5.018e-05]
[1736392824025,0.55195968,94622.0,94621.0,5.018e-05]
[1736392824966,0.5513111,94622.0,94621.0,5.018e-05]
[1736392825803,0.5483111,94622.0,94621.0,5.018e-05]
[1736392826157,0.53888684,94622.0,94621.0,5.018e-05]
[1736392827062,0.53988684,94622.0,94621.0,5.018e-05]
[1736392827782,0.53888684,94622.0,94621.0,5.018e-05]
[1736392828452,0.53988684,94622.0,94621.0,5.018e-05]
[1736392828696,0.49458684,94622.0,94621.0,5.018e-05]
[1736392834367,0.49358684,94622.0,94621.0,5.018e-05]
[1736392834569,0.49458684,94622.0,94621.0,5.018e-05]
[1736392834804,0.51014127,94622.0,94621.0,5.018e-05]
[1736392835214,0.78340501,94622.0,94621.0,5.018e-05]
[1736392835413,0.99115707,94622.0,94621.0,5.018e-05]
[1736392835540,1.09115707,94622.0,94621.0,5.018e-05]
[1736392835967,1.08915707,94622.0,94621.0,5.018e-05]
[1736392836368,1.09015707,94622.0,94621.0,5.018e-05]
[1736392836600,1.08879547,94622.0,94621.0,5.018e-05]
[1736392837134,1.07224104,94622.0,94621.0,5.018e-05]
[1736392837320,1.07324104,94622.0,94621.0,5.018e-05]
[1736392837689,1.07224104,94622.0,94621.0,5.018e-05]
[1736392838119,1.07624104,94622.0,94621.0,5.018e-05]
[1736392838320,0.5640173,94622.0,94621.0,5.018e-05]
[1736392838531,0.49605119,94622.0,94621.0,0.00105018]
[1736392838696,0.49205119,94622.0,94621.0,5.018e-05]
[1736392838896,0.49605119,94622.0,94621.0,5.018e-05]
[1736392839302,0.50205119,94622.0,94621.0,0.00105018]
[1736392839504,0.50205119,94622.0,94621.0,5.018e-05]
[1736392839936,0.71235095,94622.0,94621.0,0.00105018]
[1736392840173,0.60805119,94622.0,94621.0,0.00105018]
[1736392840380,0.60405119,94622.0,94621.0,0.00105018]
[1736392840583,0.50405119,94622.0,94621.0,0.00105018]
[1736392840732,0.60405119,94622.0,94621.0,0.00105018]
[1736392840983,0.59505119,94622.0,94621.0,5.018e-05]
[1736392841406,0.50305119,94622.0,94621.0,0.00105018]
[1736392841614,0.49505119,94622.0,94621.0,5.018e-05]
[1736392842075,0.50305119,94622.0,94621.0,0.00105018]
[1736392842271,0.59205119,94622.0,94621.0,5.018e-05]
[1736392842507,0.59205119,94622.0,94621.0,0.00105018]
[1736392842639,0.69541669,94622.0,94621.0,0.00105018]
[1736392842826,0.69541669,94622.0,94621.0,5.018e-05]
[1736392843091,0.49905119,94622.0,94621.0,5.018e-05]
[1736392843267,0.33631143,94622.0,94621.0,5.018e-05]
[1736392843463,0.39475143,94622.0,94621.0,5.018e-05]
[1736392843919,0.39775143,94622.0,94621.0,5.018e-05]
[1736392844086,0.40575143,94622.0,94621.0,0.00105018]
[1736392844287,0.02371143,94622.0,94621.0,0.00105018]
[1736392844488,0.05844,94626.0,94621.0,0.07945018]
[1736392844712,0.05844,94626.0,94622.0,0.422734]
[1736392845425,8.51e-05,94635.0,94622.0,0.211367]
[1736392845572,0.05844,94634.0,94627.0,0.211354]
[1736392846462,0.05844,94634.0,94622.0,0.212367]
[1736392846587,0.05844,94634.0,94623.0,0.211365]
[1736392847033,8.51e-05,94635.0,94623.0,0.42273]
[1736392847217,8.51e-05,94635.0,94634.0,0.0804]
[1736392847755,0.0030851,94635.0,94634.0,0.0804]
[1736392847893,0.00496942,94635.0,94634.0,0.0804]
[1736392848295,0.0010851,94635.0,94634.0,0.0804]
[1736392848490,8.51e-05,94635.0,94634.0,0.0804]
[1736392848735,0.00504425,94635.0,94625.0,0.0785]
[1736392848973,8.51e-05,94635.0,94634.0,0.001]
[1736392850540,8.51e-05,94635.0,94628.0,0.211352]
[1736392850928,8.51e-05,94635.0,94628.0,0.422705]
[1736392851592,0.01655248,94634.0,94628.0,0.422705]
[1736392851935,0.01655248,94634.0,94628.0,0.211352]
[1736392852137,0.01655248,94634.0,94625.0,0.08893397]
[1736392852138,0.01655248,94634.0,94625.0,0.0785]
[1736392853762,0.01655248,94634.0,94628.0,0.001]
[1736392853980,0.01655248,94634.0,94625.0,0.0785]
[1736392854382,0.01855248,94634.0,94625.0,0.0785]
[1736392854778,0.01655248,94634.0,94625.0,0.0785]
[1736392855119,0.01855248,94634.0,94625.0,0.0785]
[1736392855324,0.01655248,94634.0,94625.0,0.0785]
[1736392855660,0.01955248,94634.0,94625.0,0.0785]
[1736392855862,0.01955248,94634.0,94618.0,0.076]
[1736392856096,0.003,94634.0,94618.0,0.076]
[1736392856287,0.003,94634.0,94621.0,0.21141718]
[1736392857673,0.001,94634.0,94621.0,0.21141718]
[1736392858023,8.51e-05,94635.0,94621.0,0.21141718]
[1736392858225,0.002,94634.0,94621.0,0.21141718]
[1736392858539,0.003,94634.0,94621.0,0.21141718]
[1736392858910,8.51e-05,94635.0,94621.0,0.21141718]
[1736392859148,0.01655271,94631.0,94621.0,0.21141718]
[1736392859350,0.0040851,94635.0,94621.0,0.21141718]
[1736392859532,0.05836,94630.0,94621.0,0.21141718]
[1736392860951,0.05836,94630.0,94621.0,5.018e-05]
[1736392863152,0.0050183,94629.0,94621.0,5.018e-05]
[1736392863380,0.05836,94630.0,94621.0,5.018e-05]
[1736392864664,0.0050183,94629.0,94621.0,5.018e-05]
[1736392867505,0.05836,94628.0,94622.0,0.422733]
[1736392867713,0.3236,94634.0,94622.0,0.422733]
[1736392867714,0.05836,94631.0,94622.0,0.422733]
[1736392867927,0.00501781,94628.0,94622.0,0.422733]
[1736392868097,0.05836,94631.0,94622.0,0.422733]
[1736392868327,0.05836,94631.0,94626.0,0.211357]
[1736392868523,0.00501733,94630.0,94626.0,0.211357]
[1736392869265,0.00501733,94630.0,94627.0,0.0828]
[1736392869830,0.00501733,94630.0,94628.0,0.211353]
[1736392870054,0.00501733,94630.0,94629.0,0.1288]
[1736392870260,0.01655215,94630.0,94629.0,0.1288]
[1736392870475,8.51e-05,94635.0,94629.0,0.340151]
[1736392871116,8.51e-05,94635.0,94630.0,0.422697]
[1736392871343,8.51e-05,94635.0,94629.0,0.1288]
[1736392871753,0.0010851,94635.0,94629.0,0.1288]
[1736392871897,8.51e-05,94635.0,94629.0,0.1288]
[1736392872330,0.0010851,94635.0,94622.0,0.0817]
[1736392872865,0.0020851,94635.0,94622.0,0.0817]
[1736392873191,0.0010851,94635.0,94622.0,0.0817]
[1736392873395,0.0010851,94635.0,94621.0,5.018e-05]
[1736392873801,0.00503328,94634.0,94621.0,5.018e-05]
[1736392875051,0.00603328,94634.0,94621.0,5.018e-05]
[1736392875460,0.001,94634.0,94621.0,5.018e-05]
[1736392875879,0.00503328,94633.0,94621.0,5.018e-05]
[1736392876083,0.001,94634.0,94622.0,0.211367]
[1736392877054,0.001,94634.0,94626.0,0.211356]
[1736392877296,8.51e-05,94635.0,94627.0,0.0797]
[1736392877501,0.05836,94633.0,94628.0,0.211353]
[1736392878502,8.51e-05,94635.0,94628.0,0.211353]
[1736392878705,0.001,94634.0,94627.0,0.0797]
[1736392878912,8.51e-05,94635.0,94628.0,0.211353]
[1736392880074,8.51e-05,94635.0,94627.0,0.0797]
[1736392880572,0.0050268,94634.0,94627.0,0.0797]
[1736392881066,0.0060268,94634.0,94627.0,0.0797]
[1736392881427,0.0050268,94634.0,94627.0,0.0797]
[1736392881834,0.00282621,94634.0,94627.0,0.0797]
[1736392882072,0.00465107,94634.0,94627.0,0.0797]
[1736392882346,0.00565107,94634.0,94627.0,0.0797]
[1736392882556,0.00565107,94634.0,94621.0,5.018e-05]
[1736392883733,0.00465107,94634.0,94621.0,5.018e-05]
[1736392884136,0.00565107,94634.0,94621.0,5.018e-05]
[1736392884984,0.03367395,94634.0,94621.0,5.018e-05]
[1736392885204,0.211344,94632.0,94621.0,5.018e-05]
[1736392885411,0.10429976,94631.0,94621.0,5.018e-05]
[1736392885834,0.21136,94625.0,94621.0,5.018e-05]
[1736392886038,0.534965,94623.0,94621.0,5.018e-05]
[1736392886158,0.38899952,94622.0,94621.0,5.018e-05]
[1736392886360,0.28933381,94622.0,94621.0,5.018e-05]
[1736392886982,0.18933381,94622.0,94621.0,5.018e-05]
[1736392887673,0.10893381,94622.0,94621.0,5.018e-05]
[1736392887830,0.22201588,94622.0,94621.0,5.018e-05]
[1736392888039,0.22038183,94622.0,94621.0,5.018e-05]
[1736392888237,0.20082669,94622.0,94621.0,5.018e-05]
[1736392888552,0.06632,94622.0,94621.0,0.00105018]
[1736392888749,0.05832,94622.0,94621.0,5.018e-05]
[1736392889079,0.27826474,94622.0,94621.0,5.018e-05]
[1736392889211,0.1740473,94622.0,94621.0,5.018e-05]
[1736392889422,0.1730473,94622.0,94621.0,5.018e-05]
[1736392889849,0.1740473,94622.0,94621.0,5.018e-05]
[1736392890318,0.2740473,94622.0,94621.0,5.018e-05]
[1736392890533,0.60814706,94622.0,94621.0,5.018e-05]
[1736392890730,0.61014706,94622.0,94621.0,5.018e-05]
[1736392890953,0.5038473,94622.0,94621.0,5.018e-05]
[1736392891432,0.5048473,94622.0,94621.0,5.018e-05]
[1736392891582,0.74600443,94622.0,94621.0,5.018e-05]
[1736392893051,0.84600443,94622.0,94621.0,5.018e-05]
[1736392893496,0.74600443,94622.0,94621.0,5.018e-05]
[1736392894060,0.84600443,94622.0,94621.0,5.018e-05]
[1736392894519,0.8294473,94622.0,94621.0,5.018e-05]
[1736392894717,0.89380487,94622.0,94621.0,5.018e-05]
[1736392894929,0.98878113,94622.0,94621.0,5.018e-05]
[1736392895337,0.92442356,94622.0,94621.0,5.018e-05]
[1736392895897,0.82442356,94622.0,94621.0,5.018e-05]
[1736392896935,0.7294473,94622.0,94621.0,5.018e-05]
[1736392897175,0.6496473,94622.0,94621.0,5.018e-05]
[1736392899511,0.7496473,94622.0,94621.0,5.018e-05]
[1736392900519,0.6496473,94622.0,94621.0,5.018e-05]
[1736392900677,0.6662043,94622.0,94621.0,5.018e-05]
[1736392901484,0.6496473,94622.0,94621.0,5.018e-05]
[1736392902451,0.5913273,94622.0,94621.0,5.018e-05]
[1736392902658,0.6496473,94622.0,94621.0,5.018e-05]
[1736392903257,0.48921976,94622.0,94621.0,5.018e-05]
[1736392903664,0.43089976,94622.0,94621.0,5.018e-05]
[1736392903863,0.48921976,94622.0,94621.0,5.018e-05]
[1736392908151,0.43089976,94622.0,94621.0,5.018e-05]
[1736392908496,0.48921976,94622.0,94621.0,5.018e-05]
[1736392910107,0.50577551,94622.0,94621.0,5.018e-05]
[1736392910309,0.48921976,94622.0,94621.0,5.018e-05]
[1736392917089,0.48913976,94622.0,94621.0,5.018e-05]
[1736392927220,0.50569542,94622.0,94621.0,5.018e-05]
[1736392927434,0.48913976,94622.0,94621.0,5.018e-05]
[1736392928417,0.43089976,94622.0,94621.0,5.018e-05]
[1736392928629,0.43089976,94622.0,94621.0,0.08135018]
[1736392928630,0.38484,94622.0,94621.0,0.08135018]
[1736392928840,0.38484,94622.0,94621.0,0.13115018]
[1736392929080,0.3266,94622.0,94621.0,0.13115018]
[1736392929299,0.38484,94622.0,94621.0,0.13115018]
[1736392929521,0.3266,94622.0,94621.0,0.13115018]
[1736392929747,0.3256,94622.0,94621.0,0.13115018]
[1736392930860,0.3236,94622.0,94621.0,0.13115018]
[1736392931984,0.3236,94622.0,94621.0,0.13415018]
[1736392932583,0.3236,94622.0,94621.0,0.13515018]
[1736392933464,0.05824,94626.0,94621.0,0.13515018]
[1736392933682,0.21136,94625.0,94621.0,0.13515018]
[1736392933898,0.00464135,94625.0,94621.0,0.13515018]
[1736392934262,0.00464135,94625.0,94621.0,0.13415018]
[1736392934420,0.00464135,94625.0,94621.0,0.13115018]
[1736392934830,0.00464135,94625.0,94621.0,0.13215018]
[1736392935063,0.00464135,94625.0,94621.0,0.13115018]
[1736392935611,0.00564135,94625.0,94621.0,0.13115018]
[1736392935816,0.00564135,94625.0,94622.0,0.211367]
[1736392936019,0.001,94625.0,94624.0,0.287762]
[1736392936620,0.01755295,94625.0,94624.0,0.287762]
[1736392937221,0.001,94625.0,94624.0,0.287762]
[1736392937669,0.05824,94632.0,94624.0,0.287762]
[1736392937821,0.05824,94632.0,94624.0,0.290762]
[1736392938023,0.05824,94632.0,94624.0,0.503124]
[1736392938693,0.05824,94632.0,94624.0,0.500124]
[1736392939507,0.05824,94632.0,94628.0,0.211352]
[1736392941158,0.05824,94632.0,94624.0,0.287762]
[1736392942293,0.05824,94632.0,94624.0,0.0764]
[1736392942455,0.269585,94632.0,94624.0,0.0764]
[1736392942661,0.211349,94630.0,94624.0,0.0764]
[1736392942874,0.00464313,94629.0,94624.0,0.0764]
[1736392943039,0.211353,94628.0,94624.0,0.0764]
[1736392943368,0.269585,94632.0,94624.0,0.0764]
[1736392943506,0.00464313,94627.0,94624.0,0.0764]
[1736392943708,0.269585,94632.0,94624.0,0.0764]
[1736392943937,0.00464313,94626.0,94624.0,0.0764]
[1736392944359,0.05824,94631.0,94624.0,0.0764]
[1736392944578,0.0046441,94625.0,94624.0,0.0764]
[1736392944770,0.05824,94631.0,94624.0,0.0764]
[1736392944989,0.00464458,94625.0,94624.0,0.0764]
[1736392945186,0.001,94626.0,94624.0,0.0764]
[1736392945502,0.00464458,94625.0,94624.0,0.0764]
[1736392945922,0.211363,94624.0,94621.0,5.018e-05]
[1736392946144,0.534967,94622.0,94621.0,5.018e-05]
[1736392946344,0.63926676,94622.0,94621.0,5.018e-05]
[1736392946548,0.64390243,94622.0,94621.0,5.018e-05]
[1736392948163,0.63926676,94622.0,94621.0,0.00105018]
[1736392948567,0.63926676,94622.0,94621.0,5.018e-05]
[1736392948772,0.64426676,94622.0,94621.0,5.018e-05]
[1736392949902,0.64626676,94622.0,94621.0,5.018e-05]
[1736392950594,0.64126676,94622.0,94621.0,5.018e-05]
[1736392950997,0.64626676,94622.0,94621.0,5.018e-05]
[1736392951203,0.64126676,94622.0,94621.0,5.018e-05]
[1736392951883,0.63926676,94622.0,94621.0,5.018e-05]
[1736392952089,0.64426676,94622.0,94621.0,5.018e-05]
[1736392952285,0.63926676,94622.0,94621.0,5.018e-05]
[1736392952619,0.64426676,94622.0,94621.0,5.018e-05]
[1736392953410,0.3286,94622.0,94621.0,5.018e-05]
[1736392953629,0.38876,94622.0,94621.0,5.018e-05]
[1736392954422,0.38376,94622.0,94621.0,5.018e-05]
[1736392954744,0.600127,94622.0,94621.0,5.018e-05]
[1736392954952,0.595127,94622.0,94621.0,5.018e-05]
[1736392955323,0.594127,94622.0,94621.0,5.018e-05]
[1736392955527,0.596127,94622.0,94621.0,5.018e-05]
[1736392955735,0.595127,94622.0,94621.0,5.018e-05]
[1736392955937,0.600127,94622.0,94621.0,5.018e-05]
[1736392957974,0.600127,94622.0,94621.0,0.26425473]
[1736392958171,0.593127,94622.0,94621.0,0.26425473]
[1736392958636,0.599127,94622.0,94621.0,0.26425473]
[1736392959240,0.597127,94622.0,94621.0,0.26425473]
[1736392959576,0.599127,94622.0,94621.0,0.26425473]
[1736392960183,0.597127,94622.0,94621.0,0.26425473]
[1736392960744,0.38576,94622.0,94621.0,0.26425473]
[1736392960952,0.004,94622.0,94621.0,0.71012349]
[1736392961138,0.004,94622.0,94621.0,0.96012349]
[1736392961344,0.09506136,94635.0,94634.0,0.36134]
[1736392961541,8.51e-05,94635.0,94634.0,0.54713976]
[1736392961769,8.51e-05,94635.0,94634.0,0.59443976]
[1736392963086,8.51e-05,94635.0,94634.0,0.59643976]
[1736392963868,8.51e-05,94635.0,94634.0,0.60143976]
[1736392964125,8.51e-05,94635.0,94634.0,0.59643976]
[1736392964507,0.0010851,94635.0,94634.0,0.49914]
[1736392964710,0.0010851,94635.0,94634.0,0.35114]
[1736392965181,0.0010851,94635.0,94634.0,0.34914]
[1736392965386,8.51e-05,94635.0,94634.0,0.34014]
[1736392965537,0.0010851,94635.0,94634.0,0.35214]
[1736392966159,0.0010851,94635.0,94634.0,0.34914]
[1736392966474,0.0010851,94635.0,94634.0,0.35214]
[1736392966873,8.51e-05,94635.0,94634.0,0.34314]
[1736392967213,0.0010851,94635.0,94634.0,0.35014]
[1736392967414,0.0010851,94635.0,94634.0,0.34314]
[1736392967757,0.0010851,94635.0,94634.0,0.34514]
[1736392967957,0.0010851,94635.0,94634.0,0.34214]
[1736392967958,8.51e-05,94635.0,94634.0,0.34214]
[1736392968201,8.51e-05,94635.0,94634.0,0.34914]
[1736392968413,0.0010851,94635.0,94634.0,0.34914]
[1736392968587,8.51e-05,94635.0,94634.0,0.34014]
[1736392968814,8.51e-05,94635.0,94634.0,0.34214]
[1736392969477,8.51e-05,94635.0,94634.0,0.34014]
[1736392969686,8.51e-05,94635.0,94634.0,0.34314]
[1736392970420,0.0010851,94635.0,94634.0,0.34914]
[1736392970623,0.0010851,94635.0,94634.0,0.34314]
[1736392970985,0.0020851,94635.0,94634.0,0.35014]
[1736392971208,0.0020851,94635.0,94634.0,0.45443976]
[1736392971359,8.51e-05,94635.0,94634.0,0.44443976]
[1736392971562,0.01763648,94635.0,94634.0,0.45243976]
[1736392971766,0.0010851,94635.0,94634.0,0.45243976]
[1736392972131,0.0010851,94635.0,94634.0,0.45043976]
[1736392972351,0.0010851,94635.0,94634.0,0.45343976]
[1736392972973,8.51e-05,94635.0,94634.0,0.44743976]
[1736392973174,0.0010851,94635.0,94634.0,0.45443976]
[1736392973427,0.0010851,94635.0,94634.0,0.44743976]
[1736392973770,0.0020851,94635.0,94634.0,0.45543976]
[1736392977706,0.0020851,94635.0,94634.0,0.35114]
[1736392978849,0.0020851,94635.0,94634.0,0.45543976]
[1736392980146,0.0020851,94635.0,94634.0,0.60543976]
[1736392981816,0.0020851,94635.0,94634.0,0.50114]
[1736392983632,0.0020851,94635.0,94634.0,0.1398]
[1736392986734,0.0020851,94635.0,94634.0,0.011]
[1736392986938,0.0781851,94635.0,94634.0,0.011]
[1736392987269,0.08289984,94635.0,94634.0,0.011]
[1736392987476,0.08089984,94635.0,94634.0,0.003]
[1736392987695,0.42268,94634.0,94614.0,0.01084325]
[1736392987929,0.07668471,94633.0,94614.0,0.01084325]
[1736392988128,0.211344,94632.0,94614.0,0.01084325]
[1736392988672,0.0047128,94631.0,94614.0,0.01084325]
[1736392989074,0.21134,94634.0,94614.0,0.01084325]
[1736392989270,0.00471377,94633.0,94614.0,0.01084325]
[1736392990263,0.32831377,94633.0,94617.0,0.211376]
[1736392990707,0.33131377,94633.0,94617.0,0.211376]
[1736392991108,0.33231377,94633.0,94617.0,0.211376]
[1736392991526,0.01655372,94631.0,94617.0,0.211376]
[1736392991879,0.00471185,94630.0,94617.0,0.211376]
[1736392993718,0.00671185,94630.0,94617.0,0.211376]
[1736392994124,0.00471185,94630.0,94617.0,0.211376]
[1736392994347,0.00571185,94630.0,94617.0,0.211376]
[1736392994676,0.00471185,94630.0,94617.0,0.211376]
[1736392995078,0.001,94630.0,94617.0,0.211376]
[1736392995340,0.00467583,94629.0,94614.0,0.01084325]
[1736392995555,0.05808,94628.0,94613.0,0.342286]
[1736392995975,0.00467486,94627.0,94613.0,0.342286]
[1736392997802,0.00467486,94627.0,94621.0,0.26525473]
[1736392998299,0.00467486,94627.0,94621.0,0.26425473]
[1736392998714,0.211358,94626.0,94621.0,0.26425473]
[1736392999142,0.00467965,94625.0,94621.0,0.26425473]
[1736393000292,0.20467965,94625.0,94621.0,0.26425473]
[1736393000729,0.211362,94624.0,94621.0,0.26425473]
[1736393001068,0.20567965,94625.0,94621.0,0.26425473]
[1736393001243,0.00467914,94623.0,94621.0,0.26425473]
[1736393001428,0.211367,94622.0,94621.0,0.26425473]
[1736393001625,0.21604565,94622.0,94621.0,0.26425473]
[1736393002305,0.19904565,94622.0,94621.0,0.26425473]
[1736393002443,0.00467865,94622.0,94621.0,0.26425473]
[1736393003528,0.00467865,94622.0,94621.0,0.26525473]
[1736393003681,0.00467865,94622.0,94621.0,0.26425473]
[1736393004086,0.00567865,94622.0,94621.0,0.26425473]
[1736393005692,0.00567865,94622.0,94621.0,0.39515473]
[1736393005899,0.001,94622.0,94621.0,0.49945449]
[1736393006802,0.3236,94623.0,94621.0,0.50145449]
[1736393006963,0.3236,94623.0,94622.0,0.31566676]
[1736393008245,0.2,94625.0,94624.0,0.211362]
[1736393008417,0.2,94625.0,94624.0,0.46566176]
[1736393008561,0.2,94625.0,94624.0,0.54816176]
[1736393009426,0.2,94625.0,94624.0,0.55016176]
[1736393009837,0.201,94625.0,94624.0,0.55716176]
[1736393010044,0.201,94625.0,94624.0,0.55516176]
[1736393010251,0.201,94625.0,94624.0,0.55816176]
[1736393012737,0.2,94625.0,94624.0,0.54816176]
[1736393012942,0.201,94625.0,94624.0,0.55516176]
[1736393013158,0.201,94625.0,94624.0,0.55816176]
[1736393013359,0.2,94625.0,94624.0,0.446862]
[1736393013557,0.201,94625.0,94624.0,0.0925]
[1736393013784,0.201,94625.0,94624.0,0.0855]
[1736393014137,0.202,94625.0,94624.0,0.0925]
[1736393014921,0.202,94625.0,94624.0,0.007]
[1736393015165,0.202,94625.0,94624.0,0.009]
[1736393015602,0.2,94625.0,94622.0,0.211367]
[1736393015798,0.2,94625.0,94624.0,0.006]
[1736393015955,0.2,94625.0,94624.0,0.008]
[1736393016431,0.2,94625.0,94624.0,0.006]
[1736393016637,0.2,94625.0,94622.0,0.211367]
[1736393016808,0.2,94625.0,94622.0,0.213367]
[1736393017014,0.2,94625.0,94624.0,0.003]
[1736393017215,0.2,94625.0,94622.0,0.424734]
[1736393017429,0.2,94625.0,94624.0,0.0827]
[1736393017663,0.2,94625.0,94624.0,0.18699976]
[1736393018656,0.2,94625.0,94624.0,0.18999976]
[1736393018852,0.2,94625.0,94624.0,0.18699976]
[1736393019063,0.2,94625.0,94624.0,0.28258607]
[1736393019424,0.2,94625.0,94624.0,0.28958607]
[1736393019598,0.2,94625.0,94624.0,0.28858607]
[1736393019804,0.2,94625.0,94624.0,0.19699976]
[1736393020388,0.2,94625.0,94624.0,0.29158607]
[1736393021234,0.2,94625.0,94624.0,0.19699976]
[1736393022001,0.2,94625.0,94624.0,0.34699976]
[1736393025238,0.2,94625.0,94624.0,0.44176086]
[1736393027048,0.2,94625.0,94624.0,0.34699976]
[1736393030889,0.2,94625.0,94624.0,0.44178128]
[1736393031452,0.21655177,94625.0,94624.0,0.44178128]
[1736393032555,0.2,94625.0,94624.0,0.44178128]
[1736393033804,0.2,94625.0,94624.0,0.34699976]
[1736393034020,0.2165517,94625.0,94624.0,0.34699976]
[1736393034410,0.2,94625.0,94624.0,0.34699976]
[1736393037419,0.2,94625.0,94624.0,0.4418143]
[1736393038351,0.2,94625.0,94624.0,0.34699976]
[1736393041421,0.2,94625.0,94624.0,0.4418143]
[1736393042168,0.2,94625.0,94624.0,0.34699976]
[1736393043209,0.2,94625.0,94624.0,0.48878873]
[1736393044745,0.2,94625.0,94624.0,0.34699976]
[1736393045391,0.2,94625.0,94624.0,0.37995058]
[1736393047173,0.2,94625.0,94624.0,0.34699976]
[1736393048319,0.2,94625.0,94624.0,0.48916943]
[1736393049841,0.2,94625.0,94624.0,0.34699976]
[1736393050669,0.2,94625.0,94624.0,0.48916943]
[1736393051249,0.2,94625.0,94624.0,0.52214427]
[1736393051876,0.2,94625.0,94624.0,0.61628729]
[1736393052605,0.2,94625.0,94624.0,0.50061245]
[1736393052941,0.2,94625.0,94624.0,0.26429976]
[1736393053629,0.2,94625.0,94624.0,0.4542286]
[1736393054586,0.2,94625.0,94624.0,0.26429976]
[1736393056513,0.2,94625.0,94624.0,0.45424574]
[1736393056821,0.2,94625.0,94624.0,0.19994598]
[1736393057230,0.2795,94625.0,94624.0,0.01]
[1736393057992,0.27727916,94625.0,94624.0,0.01]
[1736393060190,0.27727916,94625.0,94624.0,0.007]
[1736393060595,0.27727916,94625.0,94621.0,0.26425473]
[1736393060996,0.27727916,94625.0,94624.0,0.001]
[1736393062247,0.27727916,94625.0,94621.0,0.26425473]
[1736393062775,0.27727916,94625.0,94624.0,0.002]
[1736393063356,0.27727916,94625.0,94621.0,0.26425473]
[1736393063764,0.27727916,94625.0,94621.0,0.26625473]
[1736393063978,0.27727916,94625.0,94621.0,0.26425473]
[1736393064382,0.29383288,94625.0,94621.0,0.26425473]
[1736393064862,0.27727916,94625.0,94621.0,0.26425473]
[1736393065543,0.27727916,94625.0,94624.0,0.002]
[1736393065744,0.27727916,94625.0,94621.0,0.26425473]
[1736393066124,0.27727916,94625.0,94621.0,0.26625473]
[1736393066335,0.27727916,94625.0,94621.0,0.26425473]
[1736393068035,0.211362,94624.0,94621.0,0.26425473]
[1736393069274,0.212362,94624.0,94621.0,0.26425473]
[1736393069476,0.214362,94624.0,94621.0,0.26425473]
[1736393069979,0.212362,94624.0,94621.0,0.26425473]
[1736393070177,0.214362,94624.0,94621.0,0.26425473]
[1736393071331,0.002,94624.0,94621.0,0.26425473]
[1736393071542,0.01955416,94624.0,94621.0,0.26425473]
[1736393074392,0.211365,94623.0,94621.0,0.26425473]
[1736393074610,0.05792,94622.0,94621.0,0.26425473]
[1736393075849,0.05892,94622.0,94621.0,0.26425473]
[1736393076459,0.05992,94622.0,94621.0,0.26425473]
[1736393078858,0.05892,94622.0,94621.0,0.26425473]
[1736393079069,0.05792,94622.0,94621.0,0.26425473]
[1736393079380,0.05892,94622.0,94621.0,0.26425473]
[1736393079624,0.05992,94622.0,94621.0,0.26425473]
[1736393079798,0.05792,94622.0,94621.0,0.26425473]
[1736393080005,0.05892,94622.0,94621.0,0.26425473]
[1736393081078,0.05992,94622.0,94621.0,0.26425473]
[1736393081442,0.05892,94622.0,94621.0,0.26425473]
[1736393081810,0.05992,94622.0,94621.0,0.26425473]
[1736393082319,0.05792,94622.0,94621.0,0.26425473]
[1736393082616,0.05992,94622.0,94621.0,0.26425473]
[1736393083518,0.05892,94622.0,94621.0,0.26425473]
[1736393083695,0.05992,94622.0,94621.0,0.26425473]
[1736393084070,0.05892,94622.0,94621.0,0.26425473]
[1736393084490,0.05992,94622.0,94621.0,0.26425473]
[1736393084693,0.07647468,94622.0,94621.0,0.26425473]
[1736393084868,0.05892,94622.0,94621.0,0.26425473]
[1736393085064,0.05779142,94622.0,94621.0,0.26425473]
[1736393085271,0.05743604,94622.0,94621.0,0.26425473]
[1736393085493,0.05843604,94622.0,94621.0,0.26425473]
[1736393085696,0.05743604,94622.0,94621.0,0.26425473]
[1736393085870,0.05643604,94622.0,94621.0,0.26425473]
[1736393086073,0.05843604,94622.0,94621.0,0.26425473]
[1736393086453,0.05743604,94622.0,94621.0,0.26425473]
[1736393086681,0.05843604,94622.0,94621.0,0.26425473]
[1736393087082,0.05743604,94622.0,94621.0,0.26425473]
[1736393087290,0.05643604,94622.0,94621.0,0.26425473]
[1736393087443,0.1607358,94622.0,94621.0,0.26425473]
[1736393087644,0.1617358,94622.0,94621.0,0.26425473]
[1736393088458,0.1627358,94622.0,94621.0,0.26425473]
[1736393088690,0.17843621,94622.0,94621.0,0.26425473]
[1736393089086,0.1627358,94622.0,94621.0,0.26425473]
[1736393090039,0.4863358,94622.0,94621.0,0.26425473]
[1736393090513,0.4843358,94622.0,94621.0,0.26425473]
[1736393090929,0.4853358,94622.0,94621.0,0.26425473]
[1736393091445,0.4843358,94622.0,94621.0,0.26425473]
[1736393091827,0.4873358,94622.0,94621.0,0.26425473]
[1736393092228,0.4863358,94622.0,94621.0,0.26425473]
[1736393092433,0.4903358,94622.0,94621.0,0.26425473]
[1736393094597,0.50689102,94622.0,94621.0,0.26425473]
[1736393094776,0.57450362,94622.0,94621.0,0.26425473]
[1736393095386,0.4903358,94622.0,94621.0,0.26425473]
[1736393095806,0.6133358,94622.0,94621.0,0.26425473]